Cogmind - Beta 13 *** ADVENTURER MODE // 2024.03.02 @ 22:07:36 Player: satan5 Result: Self-destructed Performance ------------- Evolutions (6) 3000 Regions Visited (11) 2200 Robots Destroyed (129) 645 Value Destroyed (4245) 4245 Prototype IDs (21) 420 Alien Tech Used (0) 0 Bonus (755) 755 TOTAL SCORE: 11265 Bonus ------- High Alert Combat Kills 275 Follower Combat Kills 331 Aligned with FarCom 300 Friendly Fire -151 Cogmind --------- Core Integrity 743/1150 Matter 246/300 Energy 29/100 System Corruption 12% Temperature Cool (0) Movement Walking (120) Location -4/Factory Parts ------- > --- POWER (2) -------- (None) > --- PROPULSION (6) --- Flexi-carbon Leg Myomer Leg Gyrokinetic Inverter > --- UTILITY (8) ------ Advanced Cooling System Large Storage Unit Core Analyzer Quantum Capacitor Hacking Suite Improved System Shield > --- WEAPON (3) ------- Compact Tesla Bomb Launcher Improved Datajack Chainsword > --- INVENTORY (15) --- Flexi-carbon Leg Myomer Leg Superbattery (0) Long-range Terrain Scanner Improved Particle Charger Improved Medium Armor Plating Hacking Suite Peak State ------------ > --- POWER ------------ Cold Fusion Reactor Light Antimatter Reactor > --- PROPULSION ------- Cooled Aerolev Unit Gyrokinetic Inverter Gyrokinetic Inverter Linear Gravjet Improved Linear Gravjet Improved Linear Gravjet > --- UTILITY ---------- Large Storage Unit Machine Analyzer Long-range Terrain Scanner Advanced Targeting Computer Target Analyzer Core Analyzer Hacking Suite Improved System Shield > --- WEAPON ----------- Railgun Railgun Railgun > --- INVENTORY -------- Light Antimatter Reactor Antigrav System Advanced Cooling System Superbattery Improved Particle Charger Quantum Capacitor Improved Medium Armor Plating Hacking Suite Heavy Disruptor Cannon Railgun Rocket Launcher Improved Datajack Chainsword [Rating: 109] Favorites ----------- Power Micro Nuclear Core Engine Light Ion Engine Power Core Micro Nuclear Core Reactor Cold Fusion Reactor Propulsion Aluminum Leg Treads Light Treads Leg Aluminum Leg Hover Unit Aerolev Unit Utility Large Storage Unit Device Improved Terrain Scanner Storage Large Storage Unit Processor Core Analyzer Hackware Hacking Suite Protection Improved Medium Armor Plating Weapon Enhanced Autogun Energy Gun Heavy EM Shotgun Energy Cannon Heavy Disruptor Cannon Ballistic Gun Enhanced Autogun Launcher Rocket Launcher Slashing Weapon Chainsword Special Melee Weapon Improved Datajack Build | -11 -10 -9 -9 -9 -8 -8 -8 -8 -6 -5 -4 ------- Run | Yrd Mat Mat Min Exi Min Mat Sto Rec Fac Fac Fac Slots Evolved 12 | . . 2 . . . 2 . . 4 2 2 Power 1 | . . . . . . . . . . . 1 Propulsion 4 | . . 1 . . . . . . 2 . 1 Utility 6 | . . 1 . . . 1 . . 2 2 . Weapon 1 | . . . . . . 1 . . . . . Parts Attached 125 | 6 . 7 3 1 6 20 13 1 11 17 40 Power 11 | 1 . . 1 . 1 . 2 . . 2 4 Engine 3 | 1 . . 1 . . . 1 . . . . Core 4 | . . . . . 1 . 1 . . 1 1 Reactor 4 | . . . . . . . . . . 1 3 Propulsion 33 | 2 . 1 2 . 1 5 5 . 3 5 9 Treads 5 | . . . . . . 3 2 . . . . Leg 11 | 2 . 1 2 . 1 2 . . . . 3 Wheel . | . . . . . . . . . . . . Hover 17 | . . . . . . . 3 . 3 5 6 Flight . | . . . . . . . . . . . . Utility 22 | 1 . 3 . 1 2 2 . . 3 3 7 Device 9 | . . 1 . . 1 2 . . . 1 4 Storage 3 | 1 . 1 . 1 . . . . . . . Processor 5 | . . 1 . . 1 . . . 2 . 1 Hackware 4 | . . . . . . . . . 1 2 1 Protection 1 | . . . . . . . . . . . 1 Artifact . | . . . . . . . . . . . . Weapon 59 | 2 . 3 . . 2 13 6 1 5 7 20 Energy Gun 5 | . . . . . . 2 . . 1 1 1 Energy Cannon 2 | . . . . . . . . . . . 2 Ballistic Gun 35 | 2 . 3 . . 1 8 3 . 3 5 10 Ballistic Cannon . | . . . . . . . . . . . . Launcher 10 | . . . . . . 3 1 . 1 1 4 Special Weapon . | . . . . . . . . . . . . Impact Weapon . | . . . . . . . . . . . . Slashing Weapon 5 | . . . . . 1 . 2 . . . 2 Piercing Weapon . | . . . . . . . . . . . . Special Melee Weapon 2 | . . . . . . . . 1 . . 1 Unidentified Prototypes 14 | . . . . 1 . 2 3 . 2 3 3 Corrupted Parts 3 | . . . . . 3 . . . . . . System Corruption 5 | . . . . . 5 . . . . . . Parts Lost 34 | . . 1 3 . . 3 . . . 5 22 Power 6 | . . . 1 . . . . . . . 5 Propulsion 15 | . . . 2 . . 3 . . . 3 7 Utility 6 | . . 1 . . . . . . . 1 4 Weapon 7 | . . . . . . . . . . 1 6 Highest Loss Streak 12 | . . 1 3 . . 2 . . . 3 12 To Critical Strikes 2 | . . . . . . . . . . 1 1 Average Slot Usage (%) 92 | . 85 90 87 88 94 91 99 100 100 98 90 Engine 4 | . 14 11 10 11 10 . . . . . . Core 4 | . . . . . . 9 9 9 6 5 5 Treads 3 | . . . . . . 12 22 . . . . Leg 14 | . 28 33 33 33 32 9 . . . . 3 Hover 10 | . . . . . . . 4 27 33 28 24 Device 4 | . . 3 . . 7 9 9 9 6 4 4 Storage 8 | . 14 11 11 11 11 9 9 9 6 5 5 Processor 14 | . . 9 11 11 11 18 18 18 20 17 16 Hackware 3 | . . . . . . . . . 6 17 11 Ballistic Gun 19 | . 28 22 22 22 20 23 24 22 19 16 9 Naked Turns . | . . . . . . . . . . . . Heaviest Build 64 | 11 11 30 29 29 32 37 36 36 36 36 64 Greatest Support 65 | 20 20 30 33 33 33 60 60 24 41 41 65 Greatest Overweight (x) 3 | 1 . . . . 1 3 1 1 . 1 2 Average Overweight (x) . | . . . . . . . . 1 . . . Largest Inventory Capacity 15 | 8 8 15 15 15 15 15 15 15 15 15 15 Average Capacity 14 | 6 8 14 15 15 15 15 15 15 15 15 15 Most Carried 15 | 5 7 14 15 15 15 15 15 15 15 15 15 Average Carried 13 | 1 5 10 14 14 14 14 14 14 14 14 12 Final Capacity 15 | 8 8 15 15 15 15 15 15 15 15 15 15 Final Carried 15 | 1 7 14 15 15 15 15 15 15 15 15 7 Class Distribution -------------------- 34% | Mutant 22% | Skirmisher 9% | Hacker-Gunner 9% | Hacker-Scout 7% | Hacker-Mutant 4% | Commander-Skirmisher 4% | Commander-Scout 3% | Commander-Assassin 3% | Hacker-Sprinter Dominant Class ---------------- Mutant | -10/Materials Mutant | -9/Materials Mutant | -9/Mines Mutant | -9/Exiles Skirmisher | -8/Mines Skirmisher | -8/Materials Skirmisher | -8/Storage Commander-Assassin | -8/Recycling Commander-Scout | -6/Factory Hacker-Scout | -5/Factory Hacker-Gunner | -4/Factory Resources | -11 -10 -9 -9 -9 -8 -8 -8 -8 -6 -5 -4 ----------- Run | Yrd Mat Mat Min Exi Min Mat Sto Rec Fac Fac Fac Matter Collected 4018 | 177 187 278 124 20 10 700 154 97 445 764 1062 Remotely . | . . . . . . . . . . . . Salvage Created 5188 | . 96 278 65 . . 1165 218 110 623 973 1660 Parts 305 | . 6 19 9 . . 80 20 8 34 58 71 Haulers Intercepted 12 | . . 1 . . . 4 1 . 1 1 4 Recyclers Shooed 1 | . . . . . . . . . . 1 . Parts Field Recycled . | . . . . . . . . . . . . Retrieved Matter . | . . . . . . . . . . . . Parts Self-Destructed . | . . . . . . . . . . . . Prevented . | . . . . . . . . . . . . Kills | -11 -10 -9 -9 -9 -8 -8 -8 -8 -6 -5 -4 ------- Run | Yrd Mat Mat Min Exi Min Mat Sto Rec Fac Fac Fac Combat Hostiles Destroyed 76 | . 1 5 3 . . 19 3 2 10 14 19 Guns 61 | . 1 5 3 . . 14 3 2 6 13 14 Cannons 3 | . . . . . . . . . . . 3 AOE 11 | . . . . . . 5 . . 4 1 1 Classes Destroyed 18 | . 3 4 3 . . 4 . . 3 . 1 Worker 9 | . 1 . . . . 2 . . 2 3 1 Builder 9 | . . 1 . . . 6 . . . 1 1 Tunneler 5 | . . . 3 . . . . . . 2 . Hauler 12 | . . 1 . . . 4 1 . 1 1 4 Recycler 3 | . . . . . . 2 . . . 1 . Mechanic 2 | . . . . . . 2 . . . . . Operator 4 | . . . . . . 1 . . . 2 1 Watcher 8 | . 1 1 . . . 2 . . 3 1 . Swarmer 17 | . . . 2 . . 4 . . 1 8 2 Cutter 1 | . . . . . . . . . 1 . . Grunt 31 | . 1 2 . . . 10 . . 7 2 9 Brawler 2 | . . . . . . 2 . . . . . Duelist 1 | . . 1 . . . . . . . . . Sentry 14 | . . 2 . . . 3 3 2 . 2 2 Demolisher 1 | . . . 1 . . . . . . . . Hunter 5 | . . . . . . . . . 1 2 2 Programmer 4 | . . . . . . . . . . . 4 Heavy 1 | . . . . . . . . . 1 . . Best Kill Streak 13 | . 1 4 3 . . 13 1 1 6 8 5 Combat Bots Only 8 | . 1 4 3 . . 4 1 1 6 8 5 Max Kills in Single Turn 6 | . 1 1 1 . . 6 1 1 2 2 1 Gunslinging 1 | . . . . . . 1 . . . 1 . Exploded 2 | . . . . . . 2 . . 2 1 1 Melee . | . . . . . . . . . . . . Uniques/NPCs Destroyed . | . . . . . . . . . . . . Combat | -11 -10 -9 -9 -9 -8 -8 -8 -8 -6 -5 -4 -------- Run | Yrd Mat Mat Min Exi Min Mat Sto Rec Fac Fac Fac Hostile Shots Fired 414 | . 6 34 23 . . 41 10 . 20 36 244 Missed 118 | . . 9 4 . . 10 6 . 7 11 71 Damage Taken 4618 | . 75 309 310 . . 490 88 . 295 330 2721 Core 793 | . 24 96 92 . . 86 12 . 30 46 407 Absorbed by Shields . | . . . . . . . . . . . . Ignored by Resistances 1302 | . 22 87 87 . . 137 25 . 79 96 769 Regen/Repaired (Parts) 7 | . . . . . . . . . . 7 . Core Remaining (%) 86 | 100 90 . . . 53 . . 82 96 95 . Volleys Fired 247 | . 11 31 8 . . 38 7 2 32 45 73 Largest 3 | . 2 2 2 . . 3 3 2 3 3 3 Hottest 110 | . 40 46 46 . . 83 75 50 83 75 110 Shots Fired 620 | . 22 62 16 . . 100 19 4 96 135 166 Gun 573 | . 22 62 16 . . 88 19 4 93 135 134 Cannon 26 | . . . . . . . . . . . 26 Launcher 21 | . . . . . . 12 . . 3 . 6 Special . | . . . . . . . . . . . . Kinetic 573 | . 22 62 16 . . 88 19 4 93 135 134 Thermal . | . . . . . . . . . . . . Explosive 21 | . . . . . . 12 . . 3 . 6 Electromagnetic 26 | . . . . . . . . . . . 26 Robot Hit Streak 34 | . 11 34 4 . . 8 5 9 18 27 28 Robot Miss Streak 4 | . 3 4 2 . . 4 1 . 3 4 3 Penetration Max 1 | . . . . . . . . . . . 1 Secondary Targets 9 | . . . 1 . . 3 . . . 3 2 Max Gunslinging Chain 2 | . . . 1 . . 2 . . . 1 1 Capacitor 25 | . . . . . . . . . . . 25 Shots Hit Robots 455 | . 17 54 13 . . 61 9 5 70 94 132 Core Hits 269 | . 7 20 9 . . 55 6 3 45 50 74 Critical Kills 8 | . . . . . . . 1 1 . 4 2 Critical Parts Destroyed 4 | . . . . . . . . . . 3 1 Critical Strikes 14 | . . . . . . . 2 1 . 7 4 Destroy 13 | . . . . . . . 2 1 . 7 3 Corrupt 1 | . . . . . . . . . . . 1 Melee Attacks 43 | . . . . . . . 27 1 . . 15 Impact . | . . . . . . . . . . . . Slashing 42 | . . . . . . . 27 . . . 15 Piercing . | . . . . . . . . . . . . Sneak Attacks 3 | . . . . . . . . 1 . . 2 Combat Hostiles 1 | . . . . . . . . 1 . . . Follow-up Attacks . | . . . . . . . . . . . . Damage Inflicted 11511 | . 167 942 201 . . 2480 172 62 1595 1991 3901 Guns 8160 | . 167 942 201 . . 954 172 62 1179 1625 2858 Cannons 389 | . . . . . . . . . . . 389 Explosions 2771 | . . . . . . 1526 . . 416 366 463 Melee 176 | . . . . . . . . . . . 176 Ramming 15 | . . . . . . . . . . . 15 Kinetic 8160 | . 167 942 201 . . 954 172 62 1179 1625 2858 Thermal 957 | . . . . . . 591 . . . 366 . Explosive 1814 | . . . . . . 935 . . 416 . 463 Electromagnetic 389 | . . . . . . . . . . . 389 Impact . | . . . . . . . . . . . . Slashing 176 | . . . . . . . . . . . 176 Piercing . | . . . . . . . . . . . . Highest Corruption 12 | . 1 . . . 5 . . . . . 12 Average Corruption 2 | . 1 . . . 4 . . . . . 2 Corruption Purged . | . . . . . . . . . . . . Corruption Blocked . | . . . . . . . . . . . . Effects 5 | . 1 . . . . . . . . . 4 Message Errors 1 | . . . . . . . . . . . 1 Heat Flow Errors 1 | . . . . . . . . . . . 1 Energy Discharges 1 | . . . . . . . . . . . 1 Data Loss (minor) 1 | . 1 . . . . . . . . . . Data Loss (major) 1 | . . . . . . . . . . . 1 Overload Shots . | . . . . . . . . . . . . Overflow Damage 217 | . . . . . . 159 . . . . 58 Projectiles 22 | . . . . . . . . . . . 22 Explosions 159 | . . . . . . 159 . . . . . Melee 36 | . . . . . . . . . . . 36 Knockbacks . | . . . . . . . . . . . . Impact . | . . . . . . . . . . . . Kinetic . | . . . . . . . . . . . . Secondary . | . . . . . . . . . . . . Self-Inflicted Damage 150 | . . . . . . 143 . . . . 7 Shots 3 | . . . . . . 3 . . . . . Rammed 1 | . . . . . . . . . . . 1 Targets Rammed 1 | . . . . . . . . . . . 1 Kicked . | . . . . . . . . . . . . Crushed . | . . . . . . . . . . . . Highest Temperature 963 | . 9 7 . . . 191 61 8 225 158 963 Average Temperature 133 | . 9 2 . . . 65 24 6 100 45 170 Received Heat Transfer 1051 | . 54 150 . . . 234 27 . 81 18 487 Effects 26 | . . . . . . . . . . . 26 Shutdowns 2 | . . . . . . . . . . . 2 Energy Bleed 5 | . . . . . . . . . . . 5 Interference 3 | . . . . . . . . . . . 3 Matter Decay 4 | . . . . . . . . . . . 4 Damage (minor) 3 | . . . . . . . . . . . 3 Damage (major) 9 | . . . . . . . . . . . 9 Siege Activations . | . . . . . . . . . . . . Robots Corrupted 1 | . . . . . . . . . . . 1 Combat Hostiles 1 | . . . . . . . . . . . 1 Parts Fried 2 | . . . . . . . . . . . 2 Impact Corruptions . | . . . . . . . . . . . . Robots Melted . | . . . . . . . . . . . . Combat Hostiles . | . . . . . . . . . . . . Parts Melted 4 | . . . . . . 2 . 1 1 . . Heat Transferred 700 | . . . . . . 400 . . . 300 . Parts Sabotaged . | . . . . . . . . . . . . Parts Stolen . | . . . . . . . . . . . . Parts Stripped . | . . . . . . . . . . . . Power Chain Reactions . | . . . . . . . . . . . . Alert | -11 -10 -9 -9 -9 -8 -8 -8 -8 -6 -5 -4 ------- Run | Yrd Mat Mat Min Exi Min Mat Sto Rec Fac Fac Fac Peak Influence 779 | . 117 200 132 . . 465 280 268 571 779 265 Initial 265 | . . 42 22 . . . 138 26 95 241 265 Average 165 | . 34 69 80 . . 247 197 136 353 497 123 Maximum Alert Level 3 | . . 1 . . . 2 1 1 2 3 1 Low Security (%) 61 | 100 100 88 100 . 100 28 56 54 10 . 71 Level 1 29 | . . 11 . . . 61 43 45 48 24 28 Level 2 7 | . . . . . . 10 . . 40 55 . Level 3 1 | . . . . . . . . . . 19 . Level 4 . | . . . . . . . . . . . . Level 5 . | . . . . . . . . . . . . High Security . | . . . . . . . . . . . . Max Security . | . . . . . . . . . . . . Squads Dispatched 19 | . 1 . . . . 2 2 . 5 3 6 Investigation 2 | . 1 . . . . . . . . . 1 Extermination 2 | . . . . . . . . . . . 2 Reinforcement 12 | . . . . . . 2 . . 5 2 3 Assault 2 | . . . . . . . 2 . . . . Garrison 1 | . . . . . . . . . . 1 . Intercept . | . . . . . . . . . . . . Searches Triggered . | . . . . . . . . . . . . Construction Impeded 1 | . . . . . . . . . . 1 . Haulers Reinforced 2 | . . . . . . . . . 1 . 1 Active Scanning Responses . | . . . . . . . . . . . . Cargo Convoy Interrupts . | . . . . . . . . . . . . Stealth | -11 -10 -9 -9 -9 -8 -8 -8 -8 -6 -5 -4 --------- Run | Yrd Mat Mat Min Exi Min Mat Sto Rec Fac Fac Fac Distress Signals 5 | . 1 . . . . 2 1 . . . 1 Communications Jammed . | . . . . . . . . . . . . Distress Signals . | . . . . . . . . . . . . Times Spotted 125 | . 6 8 8 . . 23 4 3 21 17 35 Peak Tracking Total 9 | . 3 5 6 . . 4 2 2 6 4 9 Tactical Retreats 10 | . 2 . 2 . . . . . . 1 5 Traps | -11 -10 -9 -9 -9 -8 -8 -8 -8 -6 -5 -4 ------- Run | Yrd Mat Mat Min Exi Min Mat Sto Rec Fac Fac Fac Traps Triggered 9 | . 3 . . . . . 1 . 1 3 1 Indirectly . | . . . . . . . . . . . . Trap Hack Attempts . | . . . . . . . . . . . . Triggered . | . . . . . . . . . . . . Disarmed . | . . . . . . . . . . . . Reprogrammed 4 | . . 4 . . . . . . . . . Reused 3 | . . 3 . . . . . . . . . Traps Extracted . | . . . . . . . . . . . . Installed . | . . . . . . . . . . . . Triggered 3 | . . 3 . . . . . . . . . Machines | -11 -10 -9 -9 -9 -8 -8 -8 -8 -6 -5 -4 ---------- Run | Yrd Mat Mat Min Exi Min Mat Sto Rec Fac Fac Fac Machines Disabled 21 | . . . . . . 7 1 . . 5 8 Max in Single Turn 5 | . . . . . . 3 1 . . 5 2 Garrison Access 3 | . . . . . . . . . 1 . 2 Machines Repaired . | . . . . . . . . . . . . Machines Dismantled . | . . . . . . . . . . . . Machines Sabotaged . | . . . . . . . . . . . . Overloaded Fab Kills . | . . . . . . . . . . . . Hacking | -11 -10 -9 -9 -9 -8 -8 -8 -8 -6 -5 -4 --------- Run | Yrd Mat Mat Min Exi Min Mat Sto Rec Fac Fac Fac Machines Accessed 51 | . . 7 1 3 . 4 4 8 6 9 9 Terminals 25 | . . 5 . . . 2 3 6 3 3 3 Fabricators 4 | . . . . . . . . . 1 1 2 Repair Stations 1 | . . . . . . . . . . 1 . Recycling Units 9 | . . 1 . . . 1 1 2 1 2 1 Scanalyzers 4 | . . 1 . . . 1 . . . 1 1 Garrison Access 4 | . . . . . . . . . 1 1 2 Total Hacks 159 | . . 31 1 26 . 9 11 21 12 21 27 Successful 92 | . . 20 1 26 . 5 5 7 2 13 13 Failed 67 | . . 11 . . . 4 6 14 10 8 14 Catastrophic 11 | . . 2 . . . 2 . 3 . 2 2 Database Lockouts . | . . . . . . . . . . . . Manual 37 | . . 3 . 1 . 3 9 6 4 2 9 Terminals 69 | . . 14 . . . 4 10 18 6 9 8 Fabricators 10 | . . . . . . . . . 2 2 6 Repair Stations 2 | . . . . . . . . . . 2 . Recycling Units 16 | . . 5 . . . 1 1 3 2 3 1 Scanalyzers 26 | . . 12 . . . 4 . . . 3 7 Garrison Access 9 | . . . . . . . . . 2 2 5 Terminal Hacks 54 | . . 6 1 26 . 1 4 5 1 6 4 Record 30 | . . . . 26 . . 1 . . 3 . Part Schematic 2 | . . . . . . . . 1 . . 1 Robot Analysis 1 | . . . . . . . . 1 . . . Prototype ID Bank 3 | . . 1 . . . . 1 . 1 . . Open Door 2 | . . . 1 . . . 1 . . . . Level Access Points 1 | . . . . . . . . . . 1 . Branch Access Points 2 | . . 1 . . . . . 1 . . . Alert Level 1 | . . . . . . . . 1 . . . Unreport Threat 4 | . . . . . . . . . . 1 3 Reprogram Traps 1 | . . 1 . . . . . . . . . Hauler Manifests 2 | . . 1 . . . . . 1 . . . Zone Layout 5 | . . 2 . . . 1 1 . . 1 . Fabricator Hacks 1 | . . . . . . . . . . 1 . Network Status 1 | . . . . . . . . . . 1 . Repair Station Hacks 2 | . . . . . . . . . . 2 . Scan Component 1 | . . . . . . . . . . 1 . Repair 1 | . . . . . . . . . . 1 . Recycling Unit Hacks 7 | . . 2 . . . . 1 2 . 1 1 Retrieve Components 7 | . . 2 . . . . 1 2 . 1 1 Scanalyzer 23 | . . 12 . . . 4 . . . 2 5 Insert Component 11 | . . 6 . . . 2 . . . 1 2 Analyze 12 | . . 6 . . . 2 . . . 1 3 Garrison Access Hacks 3 | . . . . . . . . . 1 . 2 Seal Access 3 | . . . . . . . . . 1 . 2 Unauthorized Hacks 2 | . . . . . . . . . . 1 1 Terminals . | . . . . . . . . . . . . Fabricators 2 | . . . . . . . . . . 1 1 Fabnet 2 | . . . . . . . . . . 1 1 Repair Stations . | . . . . . . . . . . . . Recycling Units . | . . . . . . . . . . . . Scanalyzers . | . . . . . . . . . . . . Garrison Access . | . . . . . . . . . . . . Data Cores Recovered 2 | . . . . . . . . . . 1 1 Used . | . . . . . . . . . . . . Hacking Detections 41 | . . 7 . . . 4 2 7 6 7 8 Full Trace Events 2 | . . 1 . . . . . . . . 1 Feedback Events . | . . . . . . . . . . . . Feedback Blocked . | . . . . . . . . . . . . Robot Schematics Acquired . | . . . . . . . . . . . . Robots Built . | . . . . . . . . . . . . Authchips . | . . . . . . . . . . . . Time . | . . . . . . . . . . . . Total Robot Build Rating . | . . . . . . . . . . . . Part Schematics Acquired 12 | . . 6 . . . 1 . 1 . 1 3 Parts Built . | . . . . . . . . . . . . Authchips . | . . . . . . . . . . . . Time . | . . . . . . . . . . . . Total Part Build Rating . | . . . . . . . . . . . . Parts Repaired 1 | . . . . . . . . . . 1 . Time 53 | . . . . . . . . . . 53 . Parts Recycled . | . . . . . . . . . . . . Recycled Matter . | . . . . . . . . . . . . Retrieved Matter . | . . . . . . . . . . . . Retrieved Components 16 | . . 8 . . . . 4 1 . . 3 Parts Scanalyzed 11 | . . 6 . . . 2 . . . 1 2 Part Schematics Acquired 10 | . . 6 . . . 1 . . . 1 2 Parts Damaged . | . . . . . . . . . . . . Bothacking | -11 -10 -9 -9 -9 -8 -8 -8 -8 -6 -5 -4 ------------ Run | Yrd Mat Mat Min Exi Min Mat Sto Rec Fac Fac Fac Used RIF Installer . | . . . . . . . . . . . . Robots Hacked 3 | . . . . . . . . . . . 3 Non-combat . | . . . . . . . . . . . . Combat 3 | . . . . . . . . . . . 3 Robot Hacks Applied . | . . . . . . . . . . . . Relay Couplers Released . | . . . . . . . . . . . . Fabnet Peak Effective % 3 | . . . . . . . . . . . 3 Autooverrided 3 | . . . . . . . . . . . 3 Robots Rewired . | . . . . . . . . . . . . Allies Hacked . | . . . . . . . . . . . . Hacks Repelled . | . . . . . . . . . . . . Allies | -11 -10 -9 -9 -9 -8 -8 -8 -8 -6 -5 -4 -------- Run | Yrd Mat Mat Min Exi Min Mat Sto Rec Fac Fac Fac Total Allies 21 | . . . . . . . 12 . 3 3 3 Largest Group 14 | . . . . . . . 12 12 14 3 3 Highest-Rated Group 309 | . . . . . . . 235 235 309 93 116 Highest-Rated Ally 116 | . . . . . . . 31 31 31 31 116 Total Orders . | . . . . . . . . . . . . Ally Attacks 121 | . . . . . . . . 28 61 3 29 Total Damage 1831 | . . . . . . . . 501 692 38 600 Kills 21 | . . . . . . . . 7 8 . 6 Allies Corrupted . | . . . . . . . . . . . . Allies Melted . | . . . . . . . . . . . . Intel | -11 -10 -9 -9 -9 -8 -8 -8 -8 -6 -5 -4 ------- Run | Yrd Mat Mat Min Exi Min Mat Sto Rec Fac Fac Fac Robot Analysis Total 1 | . . . . . . . . 1 . . . Derelict Logs Recovered 1 | . . . 1 . . . . . . . . Drone Launches . | . . . . . . . . . . . . Drone Recoveries . | . . . . . . . . . . . . Exploration | -11 -10 -9 -9 -9 -8 -8 -8 -8 -6 -5 -4 ------------- Run | Yrd Mat Mat Min Exi Min Mat Sto Rec Fac Fac Fac Turns Passed 5966 | 43 275 674 498 528 273 900 401 357 292 369 1356 Spaces Moved 5116 | 35 199 445 373 437 218 400 177 328 479 604 1421 Core 19 | 19 . . . . . . . . . . . Treads 412 | . . . . . . 268 144 . . . . Legs 2057 | 16 199 445 373 437 218 132 . . . . 237 Wheels . | . . . . . . . . . . . . Hover 2628 | . . . . . . . 33 328 479 604 1184 Flight . | . . . . . . . . . . . . Fastest Speed 30 | 50 120 120 120 120 120 120 102 102 34 34 30 Average Speed 90 | 88 120 120 120 120 120 178 151 102 34 34 64 Slowest Speed 330 | 190 120 120 120 120 190 330 165 102 34 95 146 Overloaded Moves . | . . . . . . . . . . . . Propulsion Burnouts . | . . . . . . . . . . . . Robots Hopped . | . . . . . . . . . . . . Cave-ins Triggered . | . . . . . . . . . . . . Exploration Rate (%) 44 | 3 43 43 73 90 54 35 28 87 20 21 37 Regions Visited 11 Branch Regions 5 Pre-discovered Areas . | . . . . . . . . . . . . Known Exits Taken 8 | . . 1 1 1 1 1 1 1 . 1 . Unknown Exits Taken 3 | 1 1 . . . . . . . 1 . . Scrap Searched 2 | . . . 1 . 1 . . . . . . Spaces Dug 12 | . . . . . . . . . . . 12 Terrain Destroyed 205 | . . . . . . 116 . . 26 27 36 Melee 12 | . . . . . . . . . . . 12 Projectile 23 | . . . . . . . . . . . 23 AOE 170 | . . . . . . 116 . . 26 27 1 Terrain Rammed . | . . . . . . . . . . . . Walls Destroyed . | . . . . . . . . . . . . Machines Disabled . | . . . . . . . . . . . . Actions | -11 -10 -9 -9 -9 -8 -8 -8 -8 -6 -5 -4 --------- Run | Yrd Mat Mat Min Exi Min Mat Sto Rec Fac Fac Fac Total 6029 | 46 215 525 409 441 226 539 263 349 572 716 1728 Wait 317 | . . 22 16 . . 56 22 10 39 36 116 Move 5105 | 34 198 444 372 436 217 399 176 327 478 603 1421 Hop . | . . . . . . . . . . . . Pick Up 95 | 6 6 16 7 1 2 9 5 4 8 9 22 Fast Attach 40 | 1 . . . 1 3 10 6 . . 6 13 Attach 54 | 5 . 7 3 . 1 4 . . 7 7 20 Detach 6 | . . . . 1 . 2 . . . 1 2 Swap 32 | . . . . . 2 6 7 1 4 5 7 Drop 76 | . . 5 3 2 1 15 13 4 4 4 25 Fire 247 | . 11 31 8 . . 38 7 2 32 45 73 Melee 43 | . . . . . . . 27 1 . . 15 Ram 1 | . . . . . . . . . . . 1 Kick . | . . . . . . . . . . . . Crush . | . . . . . . . . . . . . Escape Stasis 13 | . . . . . . . . . . . 13 Rewire . | . . . . . . . . . . . . Trap . | . . . . . . . . . . . . Miscellaneous . | . . . . . . . . . . . . Route ------- -11/Scrapyard -10/Materials (discovered 3 exits: *Mat x2 / [*Min]) -9/Materials (discovered 3 exits: *Mat / *Min x2) -9/Mines (discovered 2 exits: *Mat / *Exi) -9/Exiles -8/Mines -8/Materials -8/Storage -8/Recycling -6/Factory -5/Factory (discovered 4 exits: *Fac x4) -4/Factory History --------- Turn | Location | Event 5 | -11/Scrapyard | Discovered new exit (range 15) 44 | -11/Scrapyard | Entered Materials 56 | -10/Materials | Discovered new exit (range 15) 195 | -10/Materials | Discovered new exit (range 10) 315 | -10/Materials | Build established: Mutant 315 | -10/Materials | Discovered new exit (range 4) 319 | -10/Materials | Entered another Materials area 319 | -9/Materials | Evolved 2 slots: Propulsion x1, Utility x1 644 | -9/Materials | Identified exit to Mines 746 | -9/Materials | Discovered new exit (range 10) 761 | -9/Materials | Identified exit to Materials 993 | -9/Materials | Entered Mines 1004 | -9/Mines | Assembled infested the area 1105 | -9/Mines | Lost 3 parts (1p2n) 1155 | -9/Mines | Discovered exit to Materials (range 9) 1269 | -9/Mines | Met a Derelict who couldn't figure out how to use a Trap Extractor 1343 | -9/Mines | Learned Materials garrison access intel 1487 | -9/Mines | Deemed a non-threat by the Exiles lab entrance 1487 | -9/Mines | Discovered new exit (range 5) 1490 | -9/Mines | Identified exit to Exiles 1491 | -9/Mines | Entered Exiles 1521 | -9/Exiles | Met 8R-AWN 1542 | -9/Exiles | Met EX-HEX 1574 | -9/Exiles | Met EX-BIN 1587 | -9/Exiles | Aligned with FarCom system 1589 | -9/Exiles | Given EX-Vault access code 1638 | -9/Exiles | Opened EX-Vault 1645 | -9/Exiles | Found Prototype Storage 1645 | -9/Exiles | Identified Superbattery 1675 | -9/Exiles | Warned to stay clear of 0b10 Research branches 1708 | -9/Exiles | Met EX-DEC 1779 | -9/Exiles | Visited The Gauntlet 2002 | -9/Exiles | Discovered new exit (range 14) 2017 | -9/Exiles | Identified exit to Mines 2019 | -9/Exiles | Left Exiles lab with Superbattery 2019 | -9/Exiles | Entered Mines 2236 | -8/Mines | Discovered exit to Materials (range 9) 2292 | -8/Mines | Entered Materials 2292 | -8/Materials | Evolved 2 slots: Utility x1, Weapon x1 2293 | -8/Materials | Loaded intel: 1 garrison access location 2393 | -8/Materials | Build established: Skirmisher 3188 | -8/Materials | Discovered new exit (range 4) 3191 | -8/Materials | Identified exit to Storage 3192 | -8/Materials | Entered Storage 3515 | -8/Storage | Discovered new exit (range 8) 3517 | -8/Storage | Assisted by bots powering up and referring to "LRC-V3" 3558 | -8/Storage | Met a pair of Derelict thieves 3575 | -8/Storage | Used back door to open Recycling access 3578 | -8/Storage | Identified exit to Recycling 3593 | -8/Storage | Entered Recycling 3593 | -8/Recycling | Accompanied by 12 allies 3922 | -8/Recycling | Discovered new exit (range 16) 3937 | -8/Recycling | Identified exit to Factory 3950 | -8/Recycling | Entered Factory 3950 | -6/Factory | Accompanied by 11 allies 3950 | -6/Factory | Evolved 4 slots: Propulsion x2, Utility x2 3980 | -6/Factory | Allied Derelicts emerged from ambush trap array 4155 | -6/Factory | Discovered new exit (range 7) 4242 | -6/Factory | Entered another Factory area 4242 | -5/Factory | Accompanied by 1 ally 4242 | -5/Factory | Evolved 2 slots: Utility x2 4246 | -5/Factory | Lost 12 allies 4308 | -5/Factory | Identified exit to Factory 4313 | -5/Factory | Garrison activated, responded to threat 4452 | -5/Factory | Lost 3 parts (2n1w) 4482 | -5/Factory | Repaired Broken Machine Analyzer 4524 | -5/Factory | Build established: Hacker-Scout 4564 | -5/Factory | Destroyed 8 combat bots 4588 | -5/Factory | Allied Derelicts emerged from ambush trap array 4611 | -5/Factory | Entered another Factory area 4611 | -4/Factory | Accompanied by 3 allies 4611 | -4/Factory | Evolved 2 slots: Power x1, Propulsion x1 4650 | -4/Factory | Found Quantum Capacitor 4794 | -4/Factory | Lost 3 allies 4867 | -4/Factory | Spotted B-86 Titan 4988 | -4/Factory | Build established: Hacker-Gunner 5354 | -4/Factory | Local machine network offline 5607 | -4/Factory | Lost 12 parts (1p5n2u4w) 5914 | -4/Factory | Build established: Hacker-Mutant 5931 | -4/Factory | System corruption reached 10% 5962 | -4/Factory | Found Prototype Launcher 5963 | -4/Factory | Identified Com. Tesla Bomb Launcher 5965 | -4/Factory | Found Com. Tesla Bomb Launcher 5967 | -4/Factory | Self-destructed Last Messages --------------- 05882_ Door malfunctions. 05885_ Gyrokinetic Inverter destroyed. 05900_ >> Machine Analyzer network decryption results: 05900_ Recycling Unit x2 05913_ UZ